Workbook

Sheet Contents
F2: =Workbook.Title -> ALF Calculation
A4: Information
A6: Title | B6: ALF Calculation
A7: Project case code
A8: Objective | B8: Calculate ALF for 900 MHz and 1800 MHz taking lump sum value as an input
A9: Version | B9: Version 1
A10: Status | B10: Approved for release
A12: Confidentiality status | B12: No confidential data
A13: Release date | B13: Semptember 2013
A15: Contents
A17: Sheet | B17: Description | D17: Status | E17: Notes
A18: Contents | B18: This contents sheet | D18: Approved for release
A19: Style Guidelines | B19: A guide to the styles used in this workbook | D19: Approved for release
A20: ALF Calculation | B20: Calculation of ALF from lump sum value, including adjustment for tax | D20: Approved for release
A23: Terms and conditions
A25: The terms and conditions on which OFCOM is making available the model are set out below.
A27: The ALF Calculation model has been created solely for the purpose of deriving revised ALF for 900 MHz and 1800 MHz spectrum, taking lump sum value as an input, according to the methodology described in Section 5 of the Consultation Document. It also provides an illustrative example of how we propose to adjust the level of ALF in the first year to reflect the common implementation date.
A29: All right, title and interest in the provided model (the ‘Model’) are owned by OFCOM. Such title and interest is protected by United Kingdom intellectual property laws and international treaty provisions. While you may freely use the Model for the purposes for which it is provided, as set out in the accompanying model documentation, it is not to be modified in any way or used for commercial gain or otherwise without the prior written permission of OFCOM.
A30: No representation or warranty is given as to the accuracy, completeness or correctness of the provided Model and it is provided 'as is'. It is provided without any representation or endorsement made and without warranty of any kind, whether express or implied, including but not limited to the implied warranties of satisfactory quality, fitness for a particular purpose, non-infringement, compatibility, security and accuracy.
A32: OFCOM does not accept any responsibility for any loss, disruption or damage to your data or your computer system which may occur whilst using the Model or material derived from the Model. OFCOM does not warrant that the functions contained in the Model will be uninterrupted or error free. Also, OFCOM does not warrant that defects will be corrected, or that the Model provided is free of viruses.
A34: In no event will OFCOM be liable for any loss or damage including, without limitation, indirect or consequential loss or damage, or any loss or damages whatsoever arising from use or loss of use of, data or profits arising out of or in connection with the use or otherwise of the provided Model. By using this Model, you agree to the above.

Sheet Style Guidelines
H2: Style Guidelines
A3: NB Use Window Unfreeze Panes (on each worksheet) to have row 1 scroll with the rest of the worksheet
A5: Styles
B8: Input | C8: 100 | E8: An input to the model that it is expected the user will change (change at will)
B10: Output | C10: 100 | E10: A key result from this part of the model (in particular one that will be used elsewhere in the model)
B12: Highlight | C12: 100 | E12: A cell that is highlighted for uncertainty
B14: Note or Source | C14: Note | E14: A note (NB smaller than standard font size)
B16: Un-format | E16: Going back to default Excel formatting
B18: Advanced user styles
B20: Input assumption | C20: 100 | E20: An input to the model that it is expected the user will change (change at will)
B22: Input Data | C22: 100 | E22: A piece of real data (only change if you have better data)
B24: Checksum | C24: 0 | E24: A side calculation intended solely to cross check a result (and which therefore should not be referenced anywhere else in the model)
B26: Note | C26: Note | E26: A note (NB smaller than standard font size)
B28: Source | C28: Source | E28: A source
B30: Named range | C30: Name | E30: An Excel Name applying to one or more adjacent cells (use Insert Name Create to actually create the Excel Names)
B32: H1 | C32: Title | E32: Heading level 1
B34: H2 | C34: Title | E34: Heading level 2
B36: H3 | C36: Title | E36: Heading level 3
B38: H4 | C38: Title | E38: Heading level 4

Sheet ALF calculation
A1: Calculation of annual licence fees for 900 MHz and 1800 MHz
A3: Input assumptions
C4: 2013/14 | D4: 2014/15 | E4: 2015/16 | F4: 2016/17 | G4: 2017/18 | H4: 2018/19 | I4: 2019/20 | J4: 2020/21 | K4: 2021/22 | L4: 2022/23 | M4: 2023/24 | N4: 2024/25 | O4: 2025/26 | P4: 2026/27 | Q4: 2027/28 | R4: 2028/29 | S4: 2029/30 | T4: 2030/31 | U4: 2031/32 | V4: 2032/33
A5: Real post tax cost of capital | B5: 0.042
A6: Main corporate tax rate | C6: 0.23 | D6: 0.21 | E6: 0.2 | F6: 0.2 | G6: 0.2 | H6: 0.2 | I6: 0.2 | J6: 0.2 | K6: 0.2 | L6: 0.2 | M6: 0.2 | N6: 0.2 | O6: 0.2 | P6: 0.2 | Q6: 0.2 | R6: 0.2 | S6: 0.2 | T6: 0.2 | U6: 0.2 | V6: 0.2
A7: Duration of ALF calculation of 20 years | B7: 20
A8: Annual inflation assumption | B8: 0.025
A9: Inflation index | C9: 1 | D9: =C9*(1+$B$8) -> 1.025 | E9: 1.050625 | F9: 1.076890625 | G9: 1.103812891 | H9: 1.131408213 | I9: 1.159693418 | J9: 1.188685754 | K9: 1.218402898 | L9: 1.24886297 | M9: 1.280084544 | N9: 1.312086658 | O9: 1.344888824 | P9: 1.378511045 | Q9: 1.412973821 | R9: 1.448298166 | S9: 1.484505621 | T9: 1.521618261 | U9: 1.559658718 | V9: 1.598650186
A11: Lump sum value for 900 MHz in £m per MHz | B11: 25
A12: Lump sum value for 1800 MHz in £m per MHz | B12: 15
A14: All in real terms. Payments assumed to occur at the beginning of the year.
A17: Run macro to calculate Tax Adjustment Factor if necessary
A19: =IF(ROUND(Check_TAF,5)=0,"Currently no need to run macro","NEED TO RUN MACRO") -> Currently no need to run macro
A22: This macro iteratively calculates the Tax Adjustment Factor, which reflect the more advantageous tax treatment of ALF compared to lump sum payments.
A23: The macro hard codes the ALF figure assumed in the calculation of the tax adjustment factor for 2013/14.
A25: Calculation of Tax Adjustment Factor
B26: PV | C26: 2013/14 | D26: 2014/15 | E26: 2015/16 | F26: 2016/17 | G26: 2017/18 | H26: 2018/19 | I26: 2019/20 | J26: 2020/21 | K26: 2021/22 | L26: 2022/23 | M26: 2023/24 | N26: 2024/25 | O26: 2025/26 | P26: 2026/27 | Q26: 2027/28 | R26: 2028/29 | S26: 2029/30 | T26: 2030/31 | U26: 2031/32 | V26: 2032/33
A27: Lump sum assumed for tax adjustment factor calculation | B27: 100
A28: Lump sum value amortised (falls over time with inflation) | B28: =NPV($B$5,D28:V28)+C28 -> 57.4423591 | C28: =($B$27/$B$7)/C$9 -> 5 | D28: 4.87804878 | E28: 4.759071981 | F28: 4.642997055 | G28: 4.529753224 | H28: 4.419271438 | I28: 4.31148433 | J28: 4.206326175 | K28: 4.103732854 | L28: 4.003641809 | M28: 3.905992009 | N28: 3.810723911 | O28: 3.717779425 | P28: 3.627101878 | Q28: 3.538635979 | R28: 3.452327784 | S28: 3.368124668 | T28: 3.285975285 | U28: 3.205829547 | V28: 3.127638582
A29: Tax benefits of amortisation of lump sum payment | B29: =NPV($B$5,D29:V29)+C29 -> 11.68528611 | C29: =C28*C$6 -> 1.15 | D29: 1.024390244 | E29: 0.9518143962 | F29: 0.9285994109 | G29: 0.9059506448 | H29: 0.8838542876 | I29: 0.862296866 | J29: 0.8412652351 | K29: 0.8207465708 | L29: 0.8007283618 | M29: 0.7811984017 | N29: 0.7621447822 | O29: 0.743555885 | P29: 0.7254203757 | Q29: 0.7077271958 | R29: 0.6904655568 | S29: 0.6736249335 | T29: 0.6571950571 | U29: 0.6411659093 | V29: 0.6255277164
A31: =A27 -> Lump sum assumed for tax adjustment factor calculation | B31: =B27 -> 100
A32: Tax benefits for annual licence fees | B32: =NPV($B$5,D32:V32)+C32 -> 22.47279331 | C32: =C34*C$6 -> 1.831382695 | D32: 1.672132026 | E32: 1.592506692 | F32: 1.592506692 | G32: 1.592506692 | H32: 1.592506692 | I32: 1.592506692 | J32: 1.592506692 | K32: 1.592506692 | L32: 1.592506692 | M32: 1.592506692 | N32: 1.592506692 | O32: 1.592506692 | P32: 1.592506692 | Q32: 1.592506692 | R32: 1.592506692 | S32: 1.592506692 | T32: 1.592506692 | U32: 1.592506692 | V32: 1.592506692
A33: less Tax benefits of amortisation of lump sum payment | B33: =-B29 -> -11.68528611
A34: Annual licence fee | B34: =NPV($B$5,D34:V34)+C34 -> 110.7875072 | C34: 7.962533458 | D34: =ALF_for_TAF_calc -> 7.962533458 | E34: 7.962533458 | F34: 7.962533458 | G34: 7.962533458 | H34: 7.962533458 | I34: 7.962533458 | J34: 7.962533458 | K34: 7.962533458 | L34: 7.962533458 | M34: 7.962533458 | N34: 7.962533458 | O34: 7.962533458 | P34: 7.962533458 | Q34: 7.962533458 | R34: 7.962533458 | S34: 7.962533458 | T34: 7.962533458 | U34: 7.962533458 | V34: 7.962533458
A35: Tax Adjustment Factor | B35: =1+(B32+B33)/B31 -> 1.107875072
A36: Check=0 | B36: =SUM(B31:B33)-B34 -> 0
A38: Implied ALF
A40: ALF for 900 MHz in £m per MHz using formula in consultation | C40: =Lump_Sum_900*TAF*$B$5/(1-(1+$B$5)^-20)*(1/(1+$B$5)) -> 1.990633364
A41: Check=0 | C41: =PMT($B$5,$B$7,-Lump_Sum_900*TAF,,1)-C40 -> 0
A42: ALF for 900 MHz in £m per MHz, rounded to two decimal places | C42: =ROUND(C40,2) -> 1.99
A44: ALF for 1800 MHz in £m per MHz using formula in consultation | C44: =Lump_Sum_1800*TAF*$B$5/(1-(1+$B$5)^-20)*(1/(1+$B$5)) -> 1.194380019
A45: Check=0 | C45: =PMT($B$5,$B$7,-Lump_Sum_1800*TAF,,1)-C44 -> 0
A46: ALF for 900 MHz in £m per MHz, rounded to two decimal places | C46: =ROUND(C44,2) -> 1.19
